[Event "Titled Tuesday Blitz February 15 Early 2022"]
[White "Fedoseev, Vladimir"]
[Black "Sarana, Alexey"]
[WhiteFideId "24130737"]
[BlackFideId "24133795"]
[WhiteElo "2726"]
[BlackElo "2665"]
[Result "1/2-1/2"]
[Round "09"]
[TimeControl "180+1"]
[Date "2022.02.15"]
[WhiteClock "0:00:02"]
[BlackClock "0:00:03"]

1. e4 {[%clk 0:03:00]}  c5 {[%clk 0:02:59]} 2. Nf3 {[%clk 0:03:00]}  d6 {[%clk 0:03:00]} 3. d4 {[%clk 0:02:59]}  cxd4 {[%clk 0:03:01]} 4. Qxd4 {[%clk 0:02:58]}  Nc6 {[%clk 0:03:01]} 5. Bb5 {[%clk 0:02:57]}  Bd7 {[%clk 0:03:01]} 6. Qd3 {[%clk 0:02:57]}  g6 {[%clk 0:03:01]} 7. O-O {[%clk 0:02:56]}  Bg7 {[%clk 0:03:01]} 8. c4 {[%clk 0:02:56]}  Nf6 {[%clk 0:03:02]} 9. Nc3 {[%clk 0:02:55]}  Ng4 {[%clk 0:03:00]} 10. Bf4 {[%clk 0:02:48]}  O-O {[%clk 0:02:59]} 11. Bxc6 {[%clk 0:02:46]}  Bxc6 {[%clk 0:02:58]} 12. h3 {[%clk 0:02:40]}  Ne5 {[%clk 0:02:58]} 13. Bxe5 {[%clk 0:02:31]}  dxe5 {[%clk 0:02:58]} 14. Qe2 {[%clk 0:02:30]}  e6 {[%clk 0:02:57]} 15. b4 {[%clk 0:02:24]}  a6 {[%clk 0:02:56]} 16. a4 {[%clk 0:02:20]}  Qe7 {[%clk 0:02:56]} 17. b5 {[%clk 0:02:15]}  Bd7 {[%clk 0:02:55]} 18. Rfb1 {[%clk 0:02:13]}  Rfc8 {[%clk 0:02:55]} 19. Nd1 {[%clk 0:02:08]}  Rc7 {[%clk 0:02:27]} 20. Nb2 {[%clk 0:02:05]}  Rac8 {[%clk 0:02:01]} 21. Qe3 {[%clk 0:02:04]}  Be8 {[%clk 0:01:56]} 22. Rd1 {[%clk 0:01:41]}  Qb4 {[%clk 0:01:52]} 23. Rab1 {[%clk 0:01:37]}  h5 {[%clk 0:01:49]} 24. Qd2 {[%clk 0:01:24]}  Qa3 {[%clk 0:01:31]} 25. Qd6 {[%clk 0:01:17]}  Qxd6 {[%clk 0:01:28]} 26. Rxd6 {[%clk 0:01:17]}  Bf8 {[%clk 0:01:28]} 27. Rdd1 {[%clk 0:01:16]}  f6 {[%clk 0:01:28]} 28. Rd3 {[%clk 0:01:01]}  g5 {[%clk 0:01:25]} 29. Kf1 {[%clk 0:00:55]}  Bg6 {[%clk 0:01:18]} 30. Nd2 {[%clk 0:00:55]}  g4 {[%clk 0:01:17]} 31. hxg4 {[%clk 0:00:54]}  hxg4 {[%clk 0:01:18]} 32. Ke2 {[%clk 0:00:52]}  Bh6 {[%clk 0:01:12]} 33. f3 {[%clk 0:00:35]}  gxf3+ {[%clk 0:01:11]} 34. gxf3 {[%clk 0:00:36]}  axb5 {[%clk 0:00:48]} 35. axb5 {[%clk 0:00:31]}  Ra8 {[%clk 0:00:49]} 36. Nd1 {[%clk 0:00:26]}  Ra2 {[%clk 0:00:41]} 37. Ne3 {[%clk 0:00:22]}  Bf4 {[%clk 0:00:33]} 38. Rg1 {[%clk 0:00:19]}  Kf7 {[%clk 0:00:27]} 39. Rh1 {[%clk 0:00:19]}  Kg7 {[%clk 0:00:19]} 40. Rg1 {[%clk 0:00:18]}  Kf7 {[%clk 0:00:19]} 41. Rh1 {[%clk 0:00:18]}  Re7 {[%clk 0:00:19]} 42. Rd8 {[%clk 0:00:17]}  Kg7 {[%clk 0:00:17]} 43. Rhh8 {[%clk 0:00:16]}  Bf7 {[%clk 0:00:17]} 44. Rh4 {[%clk 0:00:15]}  Bg5 {[%clk 0:00:17]} 45. Rg4 {[%clk 0:00:15]}  Bh5 {[%clk 0:00:17]} 46. Rg1 {[%clk 0:00:13]}  Rc7 {[%clk 0:00:17]} 47. Rd6 {[%clk 0:00:12]}  Kf7 {[%clk 0:00:17]} 48. b6 {[%clk 0:00:12]}  Re7 {[%clk 0:00:17]} 49. c5 {[%clk 0:00:11]}  Rb2 {[%clk 0:00:16]} 50. Rxg5 {[%clk 0:00:10]}  fxg5 {[%clk 0:00:16]} 51. Nc4 {[%clk 0:00:11]}  Rc2 {[%clk 0:00:15]} 52. Kd3 {[%clk 0:00:10]}  Rc1 {[%clk 0:00:16]} 53. Nxe5+ {[%clk 0:00:10]}  Kf6 {[%clk 0:00:16]} 54. Nec4 {[%clk 0:00:09]}  Be8 {[%clk 0:00:14]} 55. Kd4 {[%clk 0:00:05]}  Bb5 {[%clk 0:00:14]} 56. Ne3 {[%clk 0:00:04]}  Ba6 {[%clk 0:00:10]} 57. e5+ {[%clk 0:00:04]}  Kf7 {[%clk 0:00:10]} 58. Ne4 {[%clk 0:00:04]}  Kg6 {[%clk 0:00:09]} 59. c6 {[%clk 0:00:03]}  bxc6 {[%clk 0:00:07]} 60. Nc5 {[%clk 0:00:03]}  Bc8 {[%clk 0:00:07]} 61. Rxc6 {[%clk 0:00:03]}  Bb7 {[%clk 0:00:06]} 62. Rc7 {[%clk 0:00:03]}  Rxc7 {[%clk 0:00:06]} 63. bxc7 {[%clk 0:00:04]}  Bc8 {[%clk 0:00:07]} 64. Nc4 {[%clk 0:00:04]}  Rd1+ {[%clk 0:00:07]} 65. Kc3 {[%clk 0:00:04]}  Rc1+ {[%clk 0:00:07]} 66. Kb4 {[%clk 0:00:04]}  Rb1+ {[%clk 0:00:06]} 67. Ka5 {[%clk 0:00:04]}  Rc1 {[%clk 0:00:06]} 68. Kb5 {[%clk 0:00:04]}  Rb1+ {[%clk 0:00:04]} 69. Kc6 {[%clk 0:00:04]}  Rc1 {[%clk 0:00:02]} 70. Nd6 {[%clk 0:00:04]}  Ba6 {[%clk 0:00:03]} 71. Kb6 {[%clk 0:00:03]}  g4 {[%clk 0:00:02]} 72. fxg4 {[%clk 0:00:03]}  Kg5 {[%clk 0:00:02]} 73. Nxe6+ {[%clk 0:00:03]}  Kxg4 {[%clk 0:00:02]} 74. Kxa6 {[%clk 0:00:02]}  Kf3 {[%clk 0:00:02]} 75. Kb6 {[%clk 0:00:01]}  Ke3 {[%clk 0:00:01]} 76. Nc5 {[%clk 0:00:01]}  Kd4 {[%clk 0:00:01]} 77. Kc6 {[%clk 0:00:02]}  Rxc5+ {[%clk 0:00:01]} 78. Kd7 {[%clk 0:00:02]}  Rxc7+ {[%clk 0:00:02]} 79. Kxc7 {[%clk 0:00:02]}  Kxe5 {[%clk 0:00:03]} 1/2-1/2


[Site "https://www.chess.com"]

[Event "Titled Tuesday Blitz February 15 Early 2022"]
[White "Fiorito, Fabian"]
[Black "Kostiukov, Alexandr"]
[WhiteFideId "100200"]
[BlackFideId "14108100"]
[WhiteElo "2395"]
[BlackElo "2202"]
[Result "0-1"]
[Round "09"]
[TimeControl "180+1"]
[Date "2022.02.15"]
[WhiteClock "0:01:23"]
[BlackClock "0:01:08"]

1. d4 {[%clk 0:02:56]}  g6 {[%clk 0:02:57]} 2. e4 {[%clk 0:02:55]}  Bg7 {[%clk 0:02:56]} 3. Nc3 {[%clk 0:02:56]}  d6 {[%clk 0:02:50]} 4. Be3 {[%clk 0:02:56]}  e5 {[%clk 0:02:50]} 5. Nge2 {[%clk 0:02:53]}  exd4 {[%clk 0:02:50]} 6. Nxd4 {[%clk 0:02:54]}  Nc6 {[%clk 0:02:49]} 7. f3 {[%clk 0:02:54]}  Nge7 {[%clk 0:02:49]} 8. h4 {[%clk 0:02:52]}  h5 {[%clk 0:02:47]} 9. Qd2 {[%clk 0:02:52]}  O-O {[%clk 0:02:44]} 10. O-O-O {[%clk 0:02:52]}  Nxd4 {[%clk 0:02:31]} 11. Bxd4 {[%clk 0:02:53]}  Bxd4 {[%clk 0:02:30]} 12. Qxd4 {[%clk 0:02:54]}  Nc6 {[%clk 0:02:31]} 13. Qd2 {[%clk 0:02:52]}  Be6 {[%clk 0:02:29]} 14. g4 {[%clk 0:02:52]}  hxg4 {[%clk 0:02:26]} 15. h5 {[%clk 0:02:53]}  g5 {[%clk 0:02:25]} 16. h6 {[%clk 0:02:33]}  gxf3 {[%clk 0:02:16]} 17. Bb5 {[%clk 0:02:32]}  Ne5 {[%clk 0:02:09]} 18. Rdg1 {[%clk 0:02:32]}  f6 {[%clk 0:02:08]} 19. Nd5 {[%clk 0:02:27]}  c6 {[%clk 0:02:04]} 20. Nxf6+ {[%clk 0:02:25]}  Qxf6 {[%clk 0:02:03]} 21. Rxg5+ {[%clk 0:02:24]}  Kh8 {[%clk 0:02:03]} 22. Bf1 {[%clk 0:02:10]}  Qf4 {[%clk 0:01:56]} 23. Rhg1 {[%clk 0:02:08]}  Qxd2+ {[%clk 0:01:55]} 24. Kxd2 {[%clk 0:02:09]}  Rg8 {[%clk 0:01:54]} 25. Rg7 {[%clk 0:02:09]}  Rxg7 {[%clk 0:01:43]} 26. hxg7+ {[%clk 0:02:10]}  Kg8 {[%clk 0:01:42]} 27. Ke3 {[%clk 0:02:11]}  Re8 {[%clk 0:01:38]} 28. b3 {[%clk 0:02:09]}  Re7 {[%clk 0:01:38]} 29. Rh1 {[%clk 0:02:04]}  Rxg7 {[%clk 0:01:38]} 30. Bd3 {[%clk 0:02:03]}  c5 {[%clk 0:01:31]} 31. Rh6 {[%clk 0:02:03]}  Kf7 {[%clk 0:01:30]} 32. Rh4 {[%clk 0:02:01]}  f2 {[%clk 0:01:29]} 33. Kxf2 {[%clk 0:02:00]}  Rg6 {[%clk 0:01:24]} 34. Ke3 {[%clk 0:01:59]}  Kg7 {[%clk 0:01:22]} 35. Be2 {[%clk 0:01:58]}  Rg3+ {[%clk 0:01:21]} 36. Kf2 {[%clk 0:01:58]}  Rc3 {[%clk 0:01:20]} 37. Bd1 {[%clk 0:01:58]}  b5 {[%clk 0:01:17]} 38. Ke1 {[%clk 0:01:58]}  b4 {[%clk 0:01:17]} 39. Kd2 {[%clk 0:01:59]}  Rg3 {[%clk 0:01:16]} 40. Rf4 {[%clk 0:01:55]}  a5 {[%clk 0:01:16]} 41. Bh5 {[%clk 0:01:53]}  Rg2+ {[%clk 0:01:15]} 42. Kc1 {[%clk 0:01:53]}  c4 {[%clk 0:01:14]} 43. Bd1 {[%clk 0:01:47]}  cxb3 {[%clk 0:01:12]} 44. axb3 {[%clk 0:01:26]}  Bxb3 {[%clk 0:01:11]} 45. Rf5 {[%clk 0:01:23]}  Be6 {[%clk 0:01:09]} 46. Rh5 {[%clk 0:01:23]}  a4 {[%clk 0:01:08]} 0-1


[Site "https://www.chess.com"]

[Event "Titled Tuesday Blitz February 15 Early 2022"]
[White "Garagulya, Konstantin"]
[Black "Pinheiro, Iung Alicio de O."]
[WhiteFideId "4128931"]
[BlackFideId "2104350"]
[WhiteElo "2329"]
[BlackElo "2643"]
[Result "1-0"]
[Round "09"]
[TimeControl "180+1"]
[Date "2022.02.15"]
[WhiteClock "0:00:07"]
[BlackClock "0:00:06"]

1. d4 {[%clk 0:03:00]}  Nf6 {[%clk 0:02:59]} 2. Nf3 {[%clk 0:02:57]}  g6 {[%clk 0:02:59]} 3. Nc3 {[%clk 0:02:56]}  d5 {[%clk 0:02:59]} 4. Bf4 {[%clk 0:02:55]}  Bg7 {[%clk 0:02:58]} 5. e3 {[%clk 0:02:56]}  O-O {[%clk 0:02:58]} 6. Nb5 {[%clk 0:02:56]}  Na6 {[%clk 0:02:58]} 7. c4 {[%clk 0:02:57]}  c6 {[%clk 0:02:57]} 8. Nc3 {[%clk 0:02:57]}  c5 {[%clk 0:02:56]} 9. Be5 {[%clk 0:02:53]}  Bg4 {[%clk 0:02:43]} 10. Bxf6 {[%clk 0:02:38]}  Bxf6 {[%clk 0:02:28]} 11. Nxd5 {[%clk 0:02:38]}  Bg7 {[%clk 0:02:28]} 12. Be2 {[%clk 0:02:29]}  e6 {[%clk 0:02:12]} 13. Nc3 {[%clk 0:02:28]}  Qb6 {[%clk 0:02:01]} 14. Qb3 {[%clk 0:02:17]}  Qa5 {[%clk 0:01:40]} 15. O-O {[%clk 0:02:08]}  Bxf3 {[%clk 0:01:31]} 16. Bxf3 {[%clk 0:02:07]}  cxd4 {[%clk 0:01:31]} 17. exd4 {[%clk 0:02:08]}  Bxd4 {[%clk 0:01:31]} 18. Qxb7 {[%clk 0:01:34]}  Rab8 {[%clk 0:01:25]} 19. Qe4 {[%clk 0:01:31]}  Bg7 {[%clk 0:00:52]} 20. Qe2 {[%clk 0:01:04]}  Nc5 {[%clk 0:00:30]} 21. Rfc1 {[%clk 0:00:51]}  Rfd8 {[%clk 0:00:23]} 22. Rc2 {[%clk 0:00:38]}  Qb4 {[%clk 0:00:21]} 23. h4 {[%clk 0:00:35]}  Nd3 {[%clk 0:00:19]} 24. Nd1 {[%clk 0:00:30]}  a5 {[%clk 0:00:15]} 25. Rb1 {[%clk 0:00:26]}  a4 {[%clk 0:00:14]} 26. h5 {[%clk 0:00:22]}  Nf4 {[%clk 0:00:14]} 27. Qe3 {[%clk 0:00:20]}  g5 {[%clk 0:00:13]} 28. g3 {[%clk 0:00:19]}  Bd4 {[%clk 0:00:13]} 29. Qe4 {[%clk 0:00:17]}  f5 {[%clk 0:00:12]} 30. Qc6 {[%clk 0:00:14]}  Qe1+ {[%clk 0:00:10]} 31. Kh2 {[%clk 0:00:13]}  Rbc8 {[%clk 0:00:07]} 32. Qb7 {[%clk 0:00:10]}  g4 {[%clk 0:00:06]} 33. Bg2 {[%clk 0:00:06]}  Ne2 {[%clk 0:00:05]} 34. Rxe2 {[%clk 0:00:06]}  Qxe2 {[%clk 0:00:06]} 35. h6 {[%clk 0:00:05]}  Bf6 {[%clk 0:00:05]} 36. Ne3 {[%clk 0:00:04]}  Qd3 {[%clk 0:00:05]} 37. Rd1 {[%clk 0:00:03]}  Qxd1 {[%clk 0:00:04]} 38. Nxd1 {[%clk 0:00:03]}  Rxd1 {[%clk 0:00:05]} 39. Qxc8+ {[%clk 0:00:04]}  Rd8 {[%clk 0:00:05]} 40. Qxe6+ {[%clk 0:00:04]}  Kf8 {[%clk 0:00:06]} 41. Qxf6+ {[%clk 0:00:04]}  Ke8 {[%clk 0:00:07]} 42. Qe6+ {[%clk 0:00:05]}  Kf8 {[%clk 0:00:07]} 43. Bd5 {[%clk 0:00:06]}  Rd7 {[%clk 0:00:06]} 44. Qxd7 {[%clk 0:00:06]}  f4 {[%clk 0:00:06]} 45. Qf7# {[%clk 0:00:07]} 1-0


[Site "https://www.chess.com"]

[Event "Titled Tuesday Blitz February 15 Early 2022"]
[White "Garriga Cazorla, Pere"]
[Black "Demchenko, Anton"]
[WhiteFideId "32011601"]
[BlackFideId "4160258"]
[WhiteElo "2458"]
[BlackElo "2539"]
[Result "0-1"]
[Round "09"]
[TimeControl "180+1"]
[Date "2022.02.15"]
[WhiteClock "0:00:06"]
[BlackClock "0:00:13"]

1. d4 {[%clk 0:02:58]}  Nf6 {[%clk 0:03:00]} 2. c4 {[%clk 0:02:58]}  d6 {[%clk 0:03:00]} 3. Nc3 {[%clk 0:02:58]}  e5 {[%clk 0:03:01]} 4. Nf3 {[%clk 0:02:50]}  Nbd7 {[%clk 0:03:00]} 5. e4 {[%clk 0:02:50]}  Be7 {[%clk 0:03:00]} 6. Be2 {[%clk 0:02:49]}  O-O {[%clk 0:03:00]} 7. O-O {[%clk 0:02:50]}  c6 {[%clk 0:03:01]} 8. Re1 {[%clk 0:02:50]}  Qc7 {[%clk 0:03:00]} 9. Bf1 {[%clk 0:02:51]}  Re8 {[%clk 0:03:00]} 10. d5 {[%clk 0:02:48]}  Nf8 {[%clk 0:02:59]} 11. h3 {[%clk 0:02:47]}  Ng6 {[%clk 0:02:59]} 12. Be3 {[%clk 0:02:47]}  Bd7 {[%clk 0:02:59]} 13. Rc1 {[%clk 0:02:47]}  c5 {[%clk 0:02:55]} 14. a3 {[%clk 0:02:47]}  h6 {[%clk 0:02:55]} 15. b4 {[%clk 0:02:45]}  b6 {[%clk 0:02:56]} 16. Nd2 {[%clk 0:02:43]}  Nh7 {[%clk 0:02:55]} 17. Nb3 {[%clk 0:02:40]}  Bg5 {[%clk 0:02:54]} 18. g3 {[%clk 0:02:33]}  Bxe3 {[%clk 0:02:53]} 19. Rxe3 {[%clk 0:02:34]}  Rf8 {[%clk 0:02:44]} 20. Nb5 {[%clk 0:02:23]}  Qb8 {[%clk 0:02:43]} 21. bxc5 {[%clk 0:02:21]}  bxc5 {[%clk 0:02:41]} 22. Na5 {[%clk 0:02:19]}  a6 {[%clk 0:02:41]} 23. Nc3 {[%clk 0:02:13]}  Qc7 {[%clk 0:02:41]} 24. Nb3 {[%clk 0:02:12]}  f5 {[%clk 0:02:33]} 25. exf5 {[%clk 0:02:12]}  Bxf5 {[%clk 0:02:33]} 26. h4 {[%clk 0:02:12]}  Rf7 {[%clk 0:02:30]} 27. Nd2 {[%clk 0:02:11]}  Nf6 {[%clk 0:02:29]} 28. Bd3 {[%clk 0:02:07]}  Ne7 {[%clk 0:02:28]} 29. Rb1 {[%clk 0:01:59]}  Raf8 {[%clk 0:02:25]} 30. Qc2 {[%clk 0:01:08]}  Bxd3 {[%clk 0:02:24]} 31. Qxd3 {[%clk 0:01:08]}  Ng4 {[%clk 0:02:24]} 32. Rf3 {[%clk 0:01:09]}  Nf5 {[%clk 0:01:45]} 33. Nce4 {[%clk 0:01:05]}  Nd4 {[%clk 0:01:18]} 34. Rxf7 {[%clk 0:01:05]}  Qxf7 {[%clk 0:01:19]} 35. Rf1 {[%clk 0:01:02]}  Qd7 {[%clk 0:00:46]} 36. Kg2 {[%clk 0:00:56]}  Nf6 {[%clk 0:00:34]} 37. Nxf6+ {[%clk 0:00:51]}  Rxf6 {[%clk 0:00:34]} 38. Qe4 {[%clk 0:00:35]}  Qa4 {[%clk 0:00:28]} 39. Qg4 {[%clk 0:00:32]}  Rf8 {[%clk 0:00:22]} 40. Qg6 {[%clk 0:00:20]}  Nf5 {[%clk 0:00:17]} 41. h5 {[%clk 0:00:18]}  Qc2 {[%clk 0:00:15]} 42. Qe6+ {[%clk 0:00:16]}  Kh8 {[%clk 0:00:14]} 43. Rb1 {[%clk 0:00:06]}  Qxd2 {[%clk 0:00:13]} 0-1


[Site "https://www.chess.com"]

[Event "Titled Tuesday Blitz February 15 Early 2022"]
[White "Golubenko, Valentina"]
[Black "Murthy, Pappu"]
[WhiteFideId "4501993"]
[BlackFideId "2013401"]
[WhiteElo "2164"]
[BlackElo "1950"]
[Result "1-0"]
[Round "09"]
[TimeControl "180+1"]
[Date "2022.02.15"]
[WhiteClock "0:01:42"]
[BlackClock "0:00:13"]

1. d4 {[%clk 0:03:00]}  Nf6 {[%clk 0:02:55]} 2. g3 {[%clk 0:03:00]}  e6 {[%clk 0:02:51]} 3. Bg2 {[%clk 0:03:00]}  d5 {[%clk 0:02:50]} 4. c4 {[%clk 0:02:59]}  dxc4 {[%clk 0:02:48]} 5. Nf3 {[%clk 0:02:54]}  Bb4+ {[%clk 0:02:44]} 6. Bd2 {[%clk 0:02:54]}  Bd6 {[%clk 0:02:21]} 7. Qa4+ {[%clk 0:02:53]}  Nc6 {[%clk 0:02:20]} 8. Qxc4 {[%clk 0:02:48]}  O-O {[%clk 0:02:12]} 9. O-O {[%clk 0:02:48]}  e5 {[%clk 0:02:04]} 10. d5 {[%clk 0:02:43]}  Ne7 {[%clk 0:02:00]} 11. e4 {[%clk 0:02:42]}  h6 {[%clk 0:01:51]} 12. Nc3 {[%clk 0:02:41]}  a6 {[%clk 0:01:46]} 13. a4 {[%clk 0:02:40]}  Nh7 {[%clk 0:01:42]} 14. Rac1 {[%clk 0:02:30]}  f5 {[%clk 0:01:34]} 15. Nxe5 {[%clk 0:02:10]}  Bxe5 {[%clk 0:01:20]} 16. d6+ {[%clk 0:02:09]}  Kh8 {[%clk 0:01:03]} 17. dxe7 {[%clk 0:02:09]}  Qxe7 {[%clk 0:01:01]} 18. Nd5 {[%clk 0:02:06]}  Qd7 {[%clk 0:00:37]} 19. Bb4 {[%clk 0:02:02]}  Rg8 {[%clk 0:00:27]} 20. Ne7 {[%clk 0:01:43]}  Re8 {[%clk 0:00:13]} 21. Ng6# {[%clk 0:01:42]} 1-0


[Site "https://www.chess.com"]

[Event "Titled Tuesday Blitz February 15 Early 2022"]
[White "Grineva, Marianna"]
[Black "Ozdemir, Serhan Berat"]
[WhiteFideId "14102013"]
[BlackFideId "6374611"]
[WhiteElo "1954"]
[BlackElo "1920"]
[Result "0-1"]
[Round "09"]
[TimeControl "180+1"]
[Date "2022.02.15"]
[WhiteClock "0:00:02"]
[BlackClock "0:00:04"]

1. e4 {[%clk 0:03:00]}  c5 {[%clk 0:02:59]} 2. Be2 {[%clk 0:02:59]}  e6 {[%clk 0:02:54]} 3. d3 {[%clk 0:02:59]}  d5 {[%clk 0:02:52]} 4. f4 {[%clk 0:02:59]}  Nc6 {[%clk 0:02:39]} 5. Nf3 {[%clk 0:02:58]}  Nf6 {[%clk 0:02:31]} 6. e5 {[%clk 0:02:55]}  Ng8 {[%clk 0:02:30]} 7. O-O {[%clk 0:02:55]}  Nge7 {[%clk 0:02:29]} 8. c4 {[%clk 0:02:49]}  d4 {[%clk 0:02:21]} 9. Nbd2 {[%clk 0:02:47]}  Nf5 {[%clk 0:02:20]} 10. Ne4 {[%clk 0:02:47]}  h5 {[%clk 0:02:19]} 11. Nfg5 {[%clk 0:02:34]}  Be7 {[%clk 0:01:22]} 12. Bxh5 {[%clk 0:02:31]}  g6 {[%clk 0:01:22]} 13. Bf3 {[%clk 0:02:26]}  Qc7 {[%clk 0:01:19]} 14. Qe2 {[%clk 0:02:09]}  b6 {[%clk 0:01:17]} 15. Bd2 {[%clk 0:01:48]}  Bb7 {[%clk 0:01:15]} 16. Rae1 {[%clk 0:01:45]}  O-O-O {[%clk 0:01:10]} 17. Nxf7 {[%clk 0:01:43]}  Bh4 {[%clk 0:00:59]} 18. Nxd8 {[%clk 0:01:26]}  Bxe1 {[%clk 0:00:55]} 19. Nxc6 {[%clk 0:01:19]}  Bxd2 {[%clk 0:00:49]} 20. Nxa7+ {[%clk 0:01:17]}  Kb8 {[%clk 0:00:49]} 21. Nb5 {[%clk 0:01:10]}  Qh7 {[%clk 0:00:20]} 22. Qxd2 {[%clk 0:00:51]}  Qxh2+ {[%clk 0:00:20]} 23. Kf2 {[%clk 0:00:51]}  Qh4+ {[%clk 0:00:20]} 24. Ke2 {[%clk 0:00:49]}  Bxe4 {[%clk 0:00:20]} 25. Bxe4 {[%clk 0:00:48]}  Ng3+ {[%clk 0:00:20]} 26. Kd1 {[%clk 0:00:42]}  Nxf1 {[%clk 0:00:19]} 27. Qe2 {[%clk 0:00:35]}  Ne3+ {[%clk 0:00:15]} 28. Kd2 {[%clk 0:00:35]}  Qxf4 {[%clk 0:00:13]} 29. Nd6 {[%clk 0:00:20]}  Rh1 {[%clk 0:00:11]} 30. g3 {[%clk 0:00:18]}  Nxc4+ {[%clk 0:00:09]} 31. Kc2 {[%clk 0:00:18]}  Qc1+ {[%clk 0:00:07]} 32. Kb3 {[%clk 0:00:19]}  Na5+ {[%clk 0:00:03]} 33. Ka3 {[%clk 0:00:18]}  Qd1 {[%clk 0:00:02]} 34. Qxd1 {[%clk 0:00:17]}  Rxd1 {[%clk 0:00:02]} 35. Bxg6 {[%clk 0:00:12]}  Rg1 {[%clk 0:00:03]} 36. Be4 {[%clk 0:00:12]}  Rxg3 {[%clk 0:00:03]} 37. Nb5 {[%clk 0:00:12]}  Rg1 {[%clk 0:00:02]} 38. b4 {[%clk 0:00:11]}  cxb4+ {[%clk 0:00:02]} 39. Kxb4 {[%clk 0:00:12]}  Nb7 {[%clk 0:00:02]} 40. a4 {[%clk 0:00:10]}  Nc5 {[%clk 0:00:02]} 41. Nd6 {[%clk 0:00:09]}  Nxe4 {[%clk 0:00:02]} 42. Nxe4 {[%clk 0:00:10]}  Rc1 {[%clk 0:00:02]} 43. Nd6 {[%clk 0:00:09]}  Kc7 {[%clk 0:00:02]} 44. Nf7 {[%clk 0:00:09]}  Kc6 {[%clk 0:00:03]} 45. Ng5 {[%clk 0:00:10]}  Kd5 {[%clk 0:00:04]} 46. Kb5 {[%clk 0:00:09]}  Rb1+ {[%clk 0:00:04]} 47. Ka6 {[%clk 0:00:09]}  Kxe5 {[%clk 0:00:03]} 48. Nf3+ {[%clk 0:00:08]}  Kd5 {[%clk 0:00:04]} 49. Ng5 {[%clk 0:00:08]}  Ra1 {[%clk 0:00:04]} 50. Kb5 {[%clk 0:00:06]}  Rb1+ {[%clk 0:00:04]} 51. Ka6 {[%clk 0:00:07]}  Rb4 {[%clk 0:00:05]} 52. Kb7 {[%clk 0:00:06]}  Rxa4 {[%clk 0:00:05]} 53. Kxb6 {[%clk 0:00:06]}  Ra3 {[%clk 0:00:06]} 54. Kb5 {[%clk 0:00:04]}  Rxd3 {[%clk 0:00:07]} 55. Kb4 {[%clk 0:00:04]}  Rc3 {[%clk 0:00:07]} 56. Nh7 {[%clk 0:00:02]}  Rc4+ {[%clk 0:00:07]} 57. Kb3 {[%clk 0:00:01]}  Rc3+ {[%clk 0:00:06]} 58. Kb2 {[%clk 0:00:02]}  e5 {[%clk 0:00:07]} 59. Nf6+ {[%clk 0:00:02]}  Kc4 {[%clk 0:00:08]} 60. Ng4 {[%clk 0:00:02]}  e4 {[%clk 0:00:04]} 61. Ne5+ {[%clk 0:00:02]}  Kd5 {[%clk 0:00:05]} 62. Ng4 {[%clk 0:00:02]}  Rg3 {[%clk 0:00:05]} 63. Nf6+ {[%clk 0:00:01]}  Ke5 {[%clk 0:00:06]} 64. Nd7+ {[%clk 0:00:01]}  Kd6 {[%clk 0:00:05]} 65. Nb6 {[%clk 0:00:02]}  e3 {[%clk 0:00:05]} 66. Nc4+ {[%clk 0:00:02]}  Kd5 {[%clk 0:00:05]} 67. Na3 {[%clk 0:00:02]}  Rg2+ {[%clk 0:00:04]} 68. Nc2 {[%clk 0:00:03]}  e2 {[%clk 0:00:05]} 69. Nb4+ {[%clk 0:00:02]}  Kc4 {[%clk 0:00:05]} 70. Nc2 {[%clk 0:00:03]}  e1=Q {[%clk 0:00:06]} 71. Ka3 {[%clk 0:00:02]}  Qc3+ {[%clk 0:00:04]} 72. Ka4 {[%clk 0:00:02]}  Qb3+ {[%clk 0:00:03]} 73. Ka5 {[%clk 0:00:02]}  Qb5# {[%clk 0:00:04]} 0-1


[Site "https://www.chess.com"]

[Event "Titled Tuesday Blitz February 15 Early 2022"]
[White "Gunina, Valentina"]
[Black "Pichot, Alan"]
[WhiteFideId "4167570"]
[BlackFideId "110973"]
[WhiteElo "2465"]
[BlackElo "2543"]
[Result "1-0"]
[Round "09"]
[TimeControl "180+1"]
[Date "2022.02.15"]
[WhiteClock "0:00:07"]
[BlackClock "0:00:08"]

1. d4 {[%clk 0:03:00]}  Nf6 {[%clk 0:02:59]} 2. c4 {[%clk 0:03:01]}  e6 {[%clk 0:02:59]} 3. Nf3 {[%clk 0:03:00]}  d5 {[%clk 0:02:56]} 4. Nc3 {[%clk 0:03:00]}  dxc4 {[%clk 0:02:56]} 5. e4 {[%clk 0:03:00]}  b5 {[%clk 0:02:56]} 6. e5 {[%clk 0:03:00]}  Nfd7 {[%clk 0:02:57]} 7. Nxb5 {[%clk 0:03:00]}  Nb6 {[%clk 0:02:57]} 8. Be2 {[%clk 0:03:00]}  Nc6 {[%clk 0:02:58]} 9. O-O {[%clk 0:02:59]}  Be7 {[%clk 0:02:58]} 10. Be3 {[%clk 0:02:59]}  O-O {[%clk 0:02:58]} 11. a3 {[%clk 0:02:52]}  Rb8 {[%clk 0:02:56]} 12. Nc3 {[%clk 0:02:52]}  Na5 {[%clk 0:02:53]} 13. Qc2 {[%clk 0:02:52]}  Nd5 {[%clk 0:02:41]} 14. Rad1 {[%clk 0:02:48]}  Bd7 {[%clk 0:02:35]} 15. Nd2 {[%clk 0:02:46]}  Nxe3 {[%clk 0:02:24]} 16. fxe3 {[%clk 0:02:46]}  Bg5 {[%clk 0:02:25]} 17. Rf3 {[%clk 0:02:45]}  c5 {[%clk 0:02:11]} 18. Nde4 {[%clk 0:02:39]}  Be7 {[%clk 0:02:09]} 19. dxc5 {[%clk 0:02:30]}  Qc7 {[%clk 0:02:09]} 20. Nf6+ {[%clk 0:02:18]}  Bxf6 {[%clk 0:01:51]} 21. exf6 {[%clk 0:02:18]}  g6 {[%clk 0:01:51]} 22. Qe4 {[%clk 0:02:09]}  Rfd8 {[%clk 0:01:51]} 23. Qh4 {[%clk 0:02:03]}  Qxc5 {[%clk 0:01:50]} 24. Ne4 {[%clk 0:01:57]}  Qf8 {[%clk 0:01:49]} 25. Rh3 {[%clk 0:01:55]}  h6 {[%clk 0:01:46]} 26. Qf4 {[%clk 0:01:44]}  e5 {[%clk 0:01:28]} 27. Qxh6 {[%clk 0:01:18]}  Qxh6 {[%clk 0:01:28]} 28. Rxh6 {[%clk 0:01:17]}  Bc6 {[%clk 0:01:24]} 29. Nd6 {[%clk 0:01:08]}  Rxb2 {[%clk 0:01:15]} 30. Bf1 {[%clk 0:00:30]}  c3 {[%clk 0:01:08]} 31. Rh8+ {[%clk 0:00:29]}  Kxh8 {[%clk 0:01:09]} 32. Nxf7+ {[%clk 0:00:28]}  Kg8 {[%clk 0:01:09]} 33. Nh6+ {[%clk 0:00:25]}  Kh7 {[%clk 0:00:35]} 34. Rxd8 {[%clk 0:00:25]}  Rb7 {[%clk 0:00:24]} 35. f7 {[%clk 0:00:15]}  Rxf7 {[%clk 0:00:24]} 36. Rh8+ {[%clk 0:00:08]}  Kg7 {[%clk 0:00:19]} 37. Bd3 {[%clk 0:00:06]}  Rd7 {[%clk 0:00:15]} 38. Rg8+ {[%clk 0:00:06]}  Kxh6 {[%clk 0:00:15]} 39. Rxg6+ {[%clk 0:00:06]}  Kh5 {[%clk 0:00:15]} 40. Bf5 {[%clk 0:00:06]}  Rd1+ {[%clk 0:00:07]} 41. Kf2 {[%clk 0:00:06]}  Rd2+ {[%clk 0:00:08]} 42. Kf1 {[%clk 0:00:07]} 1-0


[Site "https://www.chess.com"]